[Event "Titled Tuesday Blitz May 23 Late 2023"]
[White "Fernandez Guillen, Ernesto J."]
[Black "Javakhadze, Zurab"]
[WhiteFideId "3512428"]
[BlackFideId "13603647"]
[WhiteElo "2429"]
[BlackElo "2381"]
[Result "0-1"]
[Round "07"]
[TimeControl "180+2"]
[Date "2023.05.23"]
[WhiteClock "0:00:06"]
[BlackClock "0:00:10"]

1. e4 {[%clk 0:03:00]}  e5 {[%clk 0:02:56]} 2. Nf3 {[%clk 0:02:55]}  Nc6 {[%clk 0:02:56]} 3. d4 {[%clk 0:02:53]}  exd4 {[%clk 0:02:56]} 4. Bc4 {[%clk 0:02:52]}  Nf6 {[%clk 0:02:55]} 5. O-O {[%clk 0:02:50]}  Nxe4 {[%clk 0:02:54]} 6. Re1 {[%clk 0:02:50]}  d5 {[%clk 0:02:54]} 7. Bxd5 {[%clk 0:02:51]}  Qxd5 {[%clk 0:02:55]} 8. Nc3 {[%clk 0:02:52]}  Qa5 {[%clk 0:02:48]} 9. Nxe4 {[%clk 0:02:52]}  Be6 {[%clk 0:02:48]} 10. Bd2 {[%clk 0:02:53]}  Qd5 {[%clk 0:02:30]} 11. Bg5 {[%clk 0:02:49]}  Bd6 {[%clk 0:02:30]} 12. c4 {[%clk 0:02:33]}  Qf5 {[%clk 0:02:26]} 13. Nh4 {[%clk 0:02:29]}  Qa5 {[%clk 0:02:13]} 14. a3 {[%clk 0:02:22]}  Be7 {[%clk 0:01:24]} 15. b4 {[%clk 0:02:18]}  Qb6 {[%clk 0:01:24]} 16. Bxe7 {[%clk 0:02:13]}  Nxe7 {[%clk 0:01:23]} 17. Nc5 {[%clk 0:01:53]}  O-O-O {[%clk 0:01:08]} 18. Nxe6 {[%clk 0:01:52]}  fxe6 {[%clk 0:01:07]} 19. Qg4 {[%clk 0:01:53]}  Nf5 {[%clk 0:01:01]} 20. Nxf5 {[%clk 0:01:46]}  exf5 {[%clk 0:01:02]} 21. Qxf5+ {[%clk 0:01:47]}  Kb8 {[%clk 0:01:02]} 22. Re6 {[%clk 0:01:47]}  c6 {[%clk 0:00:47]} 23. Re7 {[%clk 0:01:44]}  d3 {[%clk 0:00:47]} 24. Qe5+ {[%clk 0:01:43]}  Ka8 {[%clk 0:00:47]} 25. Rd1 {[%clk 0:01:28]}  Rhf8 {[%clk 0:00:44]} 26. c5 {[%clk 0:01:28]}  Qa6 {[%clk 0:00:43]} 27. h4 {[%clk 0:00:44]}  Qxa3 {[%clk 0:00:35]} 28. Qxg7 {[%clk 0:00:39]}  Qxb4 {[%clk 0:00:29]} 29. Rd7 {[%clk 0:00:31]}  Qxc5 {[%clk 0:00:21]} 30. Rxd8+ {[%clk 0:00:22]}  Rxd8 {[%clk 0:00:21]} 31. Rxd3 {[%clk 0:00:12]}  Qc1+ {[%clk 0:00:21]} 32. Kh2 {[%clk 0:00:12]}  Qf4+ {[%clk 0:00:21]} 33. Qg3 {[%clk 0:00:09]}  Qxg3+ {[%clk 0:00:20]} 34. Rxg3 {[%clk 0:00:10]}  b5 {[%clk 0:00:19]} 35. f4 {[%clk 0:00:10]}  b4 {[%clk 0:00:18]} 36. f5 {[%clk 0:00:11]}  c5 {[%clk 0:00:17]} 37. f6 {[%clk 0:00:11]}  Rf8 {[%clk 0:00:17]} 38. Rf3 {[%clk 0:00:11]}  c4 {[%clk 0:00:17]} 39. Rf4 {[%clk 0:00:11]}  a5 {[%clk 0:00:17]} 40. g4 {[%clk 0:00:09]}  c3 {[%clk 0:00:17]} 41. g5 {[%clk 0:00:09]}  c2 {[%clk 0:00:16]} 42. Rc4 {[%clk 0:00:10]}  b3 {[%clk 0:00:17]} 43. h5 {[%clk 0:00:10]}  b2 {[%clk 0:00:16]} 44. g6 {[%clk 0:00:10]}  hxg6 {[%clk 0:00:15]} 45. hxg6 {[%clk 0:00:11]}  c1=Q {[%clk 0:00:14]} 46. g7 {[%clk 0:00:12]}  Rb8 {[%clk 0:00:12]} 47. f7 {[%clk 0:00:10]}  Qxc4 {[%clk 0:00:11]} 48. f8=Q {[%clk 0:00:06]}  b1=Q {[%clk 0:00:10]} 0-1


[Site "https://www.chess.com"]

[Event "Titled Tuesday Blitz May 23 Late 2023"]
[White "Panesar Vedant"]
[Black "Mirimanian, Hayk"]
[WhiteFideId "35033018"]
[BlackFideId "4700180"]
[WhiteElo "2347"]
[BlackElo "2280"]
[Result "0-1"]
[Round "07"]
[TimeControl "180+2"]
[Date "2023.05.23"]
[WhiteClock "0:00:29"]
[BlackClock "0:00:30"]

1. e4 {[%clk 0:03:00]}  c5 {[%clk 0:02:56]} 2. Nf3 {[%clk 0:03:01]}  d6 {[%clk 0:02:56]} 3. d4 {[%clk 0:03:01]}  cxd4 {[%clk 0:02:57]} 4. Nxd4 {[%clk 0:03:02]}  Nf6 {[%clk 0:02:57]} 5. Nc3 {[%clk 0:03:03]}  a6 {[%clk 0:02:56]} 6. f3 {[%clk 0:03:03]}  e5 {[%clk 0:02:52]} 7. Nb3 {[%clk 0:03:04]}  Be6 {[%clk 0:02:50]} 8. Be3 {[%clk 0:03:05]}  Be7 {[%clk 0:02:49]} 9. Qd2 {[%clk 0:03:05]}  O-O {[%clk 0:02:47]} 10. O-O-O {[%clk 0:03:05]}  Nbd7 {[%clk 0:02:46]} 11. g4 {[%clk 0:03:05]}  b5 {[%clk 0:02:44]} 12. Rg1 {[%clk 0:03:05]}  Nb6 {[%clk 0:02:38]} 13. Qf2 {[%clk 0:02:53]}  Nfd7 {[%clk 0:02:35]} 14. Kb1 {[%clk 0:02:50]}  b4 {[%clk 0:02:23]} 15. Nd5 {[%clk 0:02:49]}  Bxd5 {[%clk 0:02:15]} 16. exd5 {[%clk 0:02:49]}  a5 {[%clk 0:02:15]} 17. Bb5 {[%clk 0:02:49]}  a4 {[%clk 0:02:07]} 18. Nc1 {[%clk 0:02:49]}  Ra5 {[%clk 0:02:03]} 19. Bc6 {[%clk 0:02:47]}  Nc4 {[%clk 0:02:02]} 20. Nd3 {[%clk 0:02:42]}  a3 {[%clk 0:01:43]} 21. b3 {[%clk 0:02:39]}  Bh4 {[%clk 0:01:43]} 22. Qe2 {[%clk 0:02:35]}  Nxe3 {[%clk 0:01:40]} 23. Qxe3 {[%clk 0:02:35]}  Nc5 {[%clk 0:01:40]} 24. Nxb4 {[%clk 0:02:31]}  Bg5 {[%clk 0:01:38]} 25. Qf2 {[%clk 0:02:27]}  Qf6 {[%clk 0:01:37]} 26. Rgf1 {[%clk 0:01:59]}  e4 {[%clk 0:01:25]} 27. Qd4 {[%clk 0:01:58]}  Qxd4 {[%clk 0:00:51]} 28. Rxd4 {[%clk 0:01:59]}  f5 {[%clk 0:00:52]} 29. c4 {[%clk 0:01:11]}  Ra7 {[%clk 0:00:51]} 30. fxe4 {[%clk 0:01:07]}  fxe4 {[%clk 0:00:50]} 31. Rxf8+ {[%clk 0:01:06]}  Kxf8 {[%clk 0:00:51]} 32. Rd1 {[%clk 0:00:54]}  Rf7 {[%clk 0:00:51]} 33. Nc2 {[%clk 0:00:55]}  Rf2 {[%clk 0:00:50]} 34. Nb4 {[%clk 0:00:55]}  Rb2+ {[%clk 0:00:47]} 35. Ka1 {[%clk 0:00:55]}  Bf6 {[%clk 0:00:48]} 36. Rf1 {[%clk 0:00:53]}  e3 {[%clk 0:00:32]} 37. g5 {[%clk 0:00:29]}  Rf2+ {[%clk 0:00:30]} 0-1


[Site "https://www.chess.com"]

[Event "Titled Tuesday Blitz May 23 Late 2023"]
[White "HamedWafa4"]
[Black "Sieciechowicz, Marcin"]
[BlackFideId "1130170"]
[WhiteElo "2635"]
[BlackElo "2302"]
[Result "1/2-1/2"]
[Round "07"]
[TimeControl "180+2"]
[Date "2023.05.23"]
[WhiteClock "0:00:23"]
[BlackClock "0:00:10"]

1. e4 {[%clk 0:03:00]}  e6 {[%clk 0:02:59]} 2. d4 {[%clk 0:03:00]}  d5 {[%clk 0:02:59]} 3. e5 {[%clk 0:03:00]}  c5 {[%clk 0:02:59]} 4. c3 {[%clk 0:03:01]}  Qb6 {[%clk 0:03:00]} 5. Nf3 {[%clk 0:03:01]}  Nc6 {[%clk 0:03:00]} 6. Be2 {[%clk 0:03:01]}  cxd4 {[%clk 0:03:00]} 7. cxd4 {[%clk 0:03:02]}  Nh6 {[%clk 0:03:01]} 8. Bxh6 {[%clk 0:03:02]}  Qxb2 {[%clk 0:03:01]} 9. O-O {[%clk 0:03:01]}  gxh6 {[%clk 0:02:48]} 10. Nbd2 {[%clk 0:03:00]}  Nxd4 {[%clk 0:02:48]} 11. Rb1 {[%clk 0:03:00]}  Nxe2+ {[%clk 0:02:43]} 12. Qxe2 {[%clk 0:03:01]}  Qxa2 {[%clk 0:02:43]} 13. Qb5+ {[%clk 0:03:01]}  Bd7 {[%clk 0:02:43]} 14. Qxb7 {[%clk 0:03:01]}  Rc8 {[%clk 0:02:28]} 15. Rfc1 {[%clk 0:02:50]}  Rxc1+ {[%clk 0:02:12]} 16. Rxc1 {[%clk 0:02:51]}  Be7 {[%clk 0:02:12]} 17. h4 {[%clk 0:02:50]}  Qa4 {[%clk 0:02:07]} 18. Qb8+ {[%clk 0:02:35]}  Bd8 {[%clk 0:02:05]} 19. Qd6 {[%clk 0:02:35]}  Qa5 {[%clk 0:01:45]} 20. Rb1 {[%clk 0:02:15]}  Qc7 {[%clk 0:01:45]} 21. Rb8 {[%clk 0:01:56]}  Qxd6 {[%clk 0:01:17]} 22. exd6 {[%clk 0:01:57]}  Rg8 {[%clk 0:01:01]} 23. Nb3 {[%clk 0:01:47]}  Rg4 {[%clk 0:00:58]} 24. Nc5 {[%clk 0:01:44]}  Rc4 {[%clk 0:00:58]} 25. Nxd7 {[%clk 0:01:42]}  Rc1+ {[%clk 0:00:52]} 26. Kh2 {[%clk 0:01:42]}  Kxd7 {[%clk 0:00:51]} 27. Ne5+ {[%clk 0:01:42]}  Kxd6 {[%clk 0:00:18]} 28. Nxf7+ {[%clk 0:01:42]}  Ke7 {[%clk 0:00:19]} 29. Nxd8 {[%clk 0:01:41]}  a5 {[%clk 0:00:19]} 30. Nb7 {[%clk 0:01:39]}  Rb1 {[%clk 0:00:16]} 31. Rh8 {[%clk 0:01:37]}  a4 {[%clk 0:00:16]} 32. Rxh7+ {[%clk 0:01:31]}  Kf6 {[%clk 0:00:16]} 33. Nc5 {[%clk 0:01:31]}  a3 {[%clk 0:00:16]} 34. Ra7 {[%clk 0:01:30]}  Rc1 {[%clk 0:00:17]} 35. Nd3 {[%clk 0:01:29]}  Rc3 {[%clk 0:00:17]} 36. Nf4 {[%clk 0:01:28]}  Kf5 {[%clk 0:00:16]} 37. g3 {[%clk 0:01:26]}  d4 {[%clk 0:00:15]} 38. Kg2 {[%clk 0:01:23]}  e5 {[%clk 0:00:16]} 39. Ra5 {[%clk 0:01:20]}  a2 {[%clk 0:00:14]} 40. Nd5 {[%clk 0:01:16]}  Rc5 {[%clk 0:00:12]} 41. Ne7+ {[%clk 0:00:54]}  Ke6 {[%clk 0:00:13]} 42. Rxa2 {[%clk 0:00:48]}  Kxe7 {[%clk 0:00:13]} 43. Ra6 {[%clk 0:00:48]}  d3 {[%clk 0:00:10]} 44. Kf3 {[%clk 0:00:48]}  Rd5 {[%clk 0:00:10]} 45. Ra1 {[%clk 0:00:47]}  Ke6 {[%clk 0:00:09]} 46. Ke3 {[%clk 0:00:47]}  Kf5 {[%clk 0:00:08]} 47. f3 {[%clk 0:00:48]}  Rd4 {[%clk 0:00:05]} 48. g4+ {[%clk 0:00:45]}  Kf6 {[%clk 0:00:04]} 49. Rd1 {[%clk 0:00:46]}  h5 {[%clk 0:00:05]} 50. gxh5 {[%clk 0:00:19]}  Rxh4 {[%clk 0:00:04]} 51. Rxd3 {[%clk 0:00:18]}  Rxh5 {[%clk 0:00:05]} 52. Rd6+ {[%clk 0:00:19]}  Kf5 {[%clk 0:00:05]} 53. Rd8 {[%clk 0:00:20]}  Rh3 {[%clk 0:00:05]} 54. Rf8+ {[%clk 0:00:20]}  Ke6 {[%clk 0:00:06]} 55. Ke4 {[%clk 0:00:21]}  Rh4+ {[%clk 0:00:06]} 56. Ke3 {[%clk 0:00:21]}  Ra4 {[%clk 0:00:07]} 57. Rd8 {[%clk 0:00:20]}  Ra3+ {[%clk 0:00:07]} 58. Ke4 {[%clk 0:00:20]}  Ra4+ {[%clk 0:00:08]} 59. Ke3 {[%clk 0:00:21]}  Ra3+ {[%clk 0:00:08]} 60. Kf2 {[%clk 0:00:21]}  Ra4 {[%clk 0:00:08]} 61. Re8+ {[%clk 0:00:21]}  Kf5 {[%clk 0:00:09]} 62. Rf8+ {[%clk 0:00:22]}  Ke6 {[%clk 0:00:08]} 63. Kg3 {[%clk 0:00:23]}  Rb4 {[%clk 0:00:07]} 64. Re8+ {[%clk 0:00:22]}  Kf6 {[%clk 0:00:08]} 65. Ra8 {[%clk 0:00:22]}  Ke6 {[%clk 0:00:08]} 66. Ra6+ {[%clk 0:00:20]}  Kf5 {[%clk 0:00:08]} 67. Ra3 {[%clk 0:00:21]}  Rc4 {[%clk 0:00:08]} 68. Rb3 {[%clk 0:00:21]}  Rd4 {[%clk 0:00:08]} 69. Rb8 {[%clk 0:00:21]}  Rc4 {[%clk 0:00:08]} 70. Rf8+ {[%clk 0:00:21]}  Ke6 {[%clk 0:00:09]} 71. Re8+ {[%clk 0:00:22]}  Kf5 {[%clk 0:00:09]} 72. Rf8+ {[%clk 0:00:22]}  Ke6 {[%clk 0:00:09]} 73. Re8+ {[%clk 0:00:23]}  Kf5 {[%clk 0:00:10]} 74. Rf8+ {[%clk 0:00:23]} 1/2-1/2


[Site "https://www.chess.com"]

[Event "Titled Tuesday Blitz May 23 Late 2023"]
[White "Makridis, Dimitrios"]
[Black "NikaVolkov"]
[WhiteFideId "25864475"]
[WhiteElo "2277"]
[BlackElo "2633"]
[Result "1-0"]
[Round "07"]
[TimeControl "180+2"]
[Date "2023.05.23"]
[WhiteClock "0:00:10"]
[BlackClock "0:00:31"]

1. e4 {[%clk 0:02:32]}  c5 {[%clk 0:02:57]} 2. Nc3 {[%clk 0:02:33]}  e6 {[%clk 0:02:58]} 3. g3 {[%clk 0:02:32]}  d5 {[%clk 0:02:58]} 4. Bg2 {[%clk 0:02:32]}  Nf6 {[%clk 0:02:58]} 5. d3 {[%clk 0:02:30]}  Nc6 {[%clk 0:02:58]} 6. f4 {[%clk 0:02:30]}  Be7 {[%clk 0:02:58]} 7. e5 {[%clk 0:02:29]}  Nd7 {[%clk 0:02:58]} 8. Nf3 {[%clk 0:02:30]}  a6 {[%clk 0:02:53]} 9. O-O {[%clk 0:02:30]}  b5 {[%clk 0:02:54]} 10. Ne2 {[%clk 0:02:29]}  f5 {[%clk 0:02:53]} 11. d4 {[%clk 0:02:28]}  O-O {[%clk 0:02:46]} 12. dxc5 {[%clk 0:02:26]}  Nxc5 {[%clk 0:02:47]} 13. Ned4 {[%clk 0:02:26]}  Nxd4 {[%clk 0:02:46]} 14. Nxd4 {[%clk 0:02:27]}  Ne4 {[%clk 0:02:46]} 15. Be3 {[%clk 0:02:26]}  Qd7 {[%clk 0:02:43]} 16. c3 {[%clk 0:02:26]}  h6 {[%clk 0:02:42]} 17. Kh1 {[%clk 0:02:24]}  Kh7 {[%clk 0:02:41]} 18. g4 {[%clk 0:02:22]}  g6 {[%clk 0:02:38]} 19. gxf5 {[%clk 0:02:21]}  gxf5 {[%clk 0:02:38]} 20. Rg1 {[%clk 0:02:19]}  Bb7 {[%clk 0:02:34]} 21. Bf3 {[%clk 0:02:13]}  Rg8 {[%clk 0:02:31]} 22. Qe2 {[%clk 0:02:13]}  b4 {[%clk 0:02:22]} 23. Bh5 {[%clk 0:02:12]}  Bc5 {[%clk 0:02:08]} 24. cxb4 {[%clk 0:02:05]}  Bxb4 {[%clk 0:02:04]} 25. Rac1 {[%clk 0:01:58]}  Bc5 {[%clk 0:02:00]} 26. Bf3 {[%clk 0:01:50]}  Qe7 {[%clk 0:01:55]} 27. b4 {[%clk 0:01:44]}  Bxb4 {[%clk 0:01:43]} 28. Nxe6 {[%clk 0:01:42]}  d4 {[%clk 0:01:35]} 29. Nxd4 {[%clk 0:01:39]}  Rxg1+ {[%clk 0:01:16]} 30. Rxg1 {[%clk 0:01:37]}  Rf8 {[%clk 0:01:11]} 31. Qg2 {[%clk 0:01:19]}  Qf7 {[%clk 0:01:10]} 32. Nxf5 {[%clk 0:01:15]}  Nf2+ {[%clk 0:01:10]} 33. Qxf2 {[%clk 0:01:08]}  Bxf3+ {[%clk 0:01:09]} 34. Qxf3 {[%clk 0:01:09]}  Qxf5 {[%clk 0:01:09]} 35. Qb7+ {[%clk 0:01:06]}  Qf7 {[%clk 0:01:06]} 36. Qxb4 {[%clk 0:00:28]}  Qd5+ {[%clk 0:01:04]} 37. Rg2 {[%clk 0:00:28]}  Rg8 {[%clk 0:01:03]} 38. Qd2 {[%clk 0:00:23]}  Qf3 {[%clk 0:00:57]} 39. Qf2 {[%clk 0:00:20]}  Qd1+ {[%clk 0:00:54]} 40. Qg1 {[%clk 0:00:20]}  Qf3 {[%clk 0:00:55]} 41. Bd4 {[%clk 0:00:19]}  h5 {[%clk 0:00:54]} 42. Qf2 {[%clk 0:00:12]}  Qe4 {[%clk 0:00:48]} 43. Qc2 {[%clk 0:00:10]}  Qxc2 {[%clk 0:00:47]} 44. Rxc2 {[%clk 0:00:11]}  Rd8 {[%clk 0:00:47]} 45. Rc7+ {[%clk 0:00:10]}  Kg6 {[%clk 0:00:47]} 46. Be3 {[%clk 0:00:09]}  Rd3 {[%clk 0:00:47]} 47. Bf2 {[%clk 0:00:09]}  h4 {[%clk 0:00:48]} 48. Kg2 {[%clk 0:00:09]}  h3+ {[%clk 0:00:48]} 49. Kf1 {[%clk 0:00:10]}  Kf5 {[%clk 0:00:49]} 50. Bg3 {[%clk 0:00:10]}  Ke4 {[%clk 0:00:47]} 51. e6 {[%clk 0:00:10]}  Kf3 {[%clk 0:00:47]} 52. Ke1 {[%clk 0:00:11]}  Re3+ {[%clk 0:00:48]} 53. Kd2 {[%clk 0:00:11]}  Rxe6 {[%clk 0:00:49]} 54. Rc3+ {[%clk 0:00:11]}  Kg2 {[%clk 0:00:49]} 55. f5 {[%clk 0:00:12]}  Rf6 {[%clk 0:00:49]} 56. Rc5 {[%clk 0:00:12]}  Rf8 {[%clk 0:00:48]} 57. Ke3 {[%clk 0:00:13]}  Rg8 {[%clk 0:00:47]} 58. Rc2+ {[%clk 0:00:12]}  Kg1 {[%clk 0:00:47]} 59. f6 {[%clk 0:00:12]}  Rf8 {[%clk 0:00:47]} 60. Be5 {[%clk 0:00:13]}  Re8 {[%clk 0:00:46]} 61. Kf3 {[%clk 0:00:14]}  Rxe5 {[%clk 0:00:45]} 62. Rc4 {[%clk 0:00:11]}  Kxh2 {[%clk 0:00:44]} 63. f7 {[%clk 0:00:11]}  Re1 {[%clk 0:00:43]} 64. Rf4 {[%clk 0:00:09]}  Rf1+ {[%clk 0:00:35]} 65. Ke4 {[%clk 0:00:09]}  Re1+ {[%clk 0:00:35]} 66. Kf5 {[%clk 0:00:09]}  Kg1 {[%clk 0:00:30]} 67. f8=Q {[%clk 0:00:09]}  h2 {[%clk 0:00:31]} 68. Rg4+ {[%clk 0:00:09]}  Kh1 {[%clk 0:00:32]} 69. Qa8+ {[%clk 0:00:10]}  Re4 {[%clk 0:00:31]} 70. Qxe4# {[%clk 0:00:10]} 1-0


[Site "https://www.chess.com"]

[Event "Titled Tuesday Blitz May 23 Late 2023"]
[White "Adla, Diego"]
[Black "Yanchenko, Roman"]
[WhiteFideId "100072"]
[BlackFideId "4137329"]
[WhiteElo "2377"]
[BlackElo "2491"]
[Result "1-0"]
[Round "07"]
[TimeControl "180+2"]
[Date "2023.05.23"]
[WhiteClock "0:00:21"]
[BlackClock "0:00:00"]

1. c4 {[%clk 0:03:00]}  e6 {[%clk 0:03:00]} 2. g3 {[%clk 0:03:00]}  d5 {[%clk 0:03:00]} 3. Bg2 {[%clk 0:03:01]}  Nf6 {[%clk 0:03:00]} 4. Nf3 {[%clk 0:03:00]}  Be7 {[%clk 0:03:00]} 5. O-O {[%clk 0:03:01]}  O-O {[%clk 0:03:01]} 6. d4 {[%clk 0:03:00]}  Nbd7 {[%clk 0:03:00]} 7. Qc2 {[%clk 0:03:00]}  c6 {[%clk 0:02:59]} 8. Rd1 {[%clk 0:02:58]}  Ne4 {[%clk 0:02:58]} 9. Nc3 {[%clk 0:02:57]}  f5 {[%clk 0:02:58]} 10. Ne1 {[%clk 0:02:37]}  Qe8 {[%clk 0:02:45]} 11. f3 {[%clk 0:02:29]}  Nxc3 {[%clk 0:02:46]} 12. Qxc3 {[%clk 0:02:28]}  Nf6 {[%clk 0:02:46]} 13. Nd3 {[%clk 0:02:25]}  Bd6 {[%clk 0:02:43]} 14. c5 {[%clk 0:02:18]}  Bb8 {[%clk 0:02:42]} 15. Bf4 {[%clk 0:02:18]}  h6 {[%clk 0:02:40]} 16. Bxb8 {[%clk 0:02:12]}  Rxb8 {[%clk 0:02:41]} 17. b4 {[%clk 0:02:13]}  g5 {[%clk 0:02:35]} 18. a4 {[%clk 0:02:10]}  Qe7 {[%clk 0:02:31]} 19. b5 {[%clk 0:02:08]}  Bd7 {[%clk 0:02:31]} 20. Rdb1 {[%clk 0:02:02]}  Be8 {[%clk 0:02:27]} 21. Rb2 {[%clk 0:01:58]}  f4 {[%clk 0:02:18]} 22. Rab1 {[%clk 0:01:51]}  fxg3 {[%clk 0:02:15]} 23. hxg3 {[%clk 0:01:49]}  Qc7 {[%clk 0:02:16]} 24. Kh2 {[%clk 0:01:40]}  Bg6 {[%clk 0:02:11]} 25. bxc6 {[%clk 0:01:39]}  Nh5 {[%clk 0:01:58]} 26. Ne5 {[%clk 0:01:24]}  Bxb1 {[%clk 0:01:57]} 27. Rxb1 {[%clk 0:01:25]}  bxc6 {[%clk 0:01:56]} 28. Rxb8 {[%clk 0:01:21]}  Rxb8 {[%clk 0:01:57]} 29. Bh3 {[%clk 0:01:21]}  Ng7 {[%clk 0:01:56]} 30. Qc2 {[%clk 0:01:16]}  Qc8 {[%clk 0:01:09]} 31. Qg6 {[%clk 0:01:11]}  Rb2 {[%clk 0:01:08]} 32. Qxh6 {[%clk 0:01:07]}  Rxe2+ {[%clk 0:01:08]} 33. Kg1 {[%clk 0:01:06]}  Rxe5 {[%clk 0:00:19]} 34. dxe5 {[%clk 0:01:06]}  Qd7 {[%clk 0:00:19]} 35. Bf1 {[%clk 0:00:58]}  d4 {[%clk 0:00:18]} 36. Bd3 {[%clk 0:00:58]}  Qd5 {[%clk 0:00:08]} 37. Bh7+ {[%clk 0:00:52]}  Kf7 {[%clk 0:00:04]} 38. Qf6+ {[%clk 0:00:51]}  Ke8 {[%clk 0:00:04]} 39. Bg6+ {[%clk 0:00:49]}  Kd7 {[%clk 0:00:05]} 40. Qxg7+ {[%clk 0:00:50]}  Kc8 {[%clk 0:00:05]} 41. Qf8+ {[%clk 0:00:44]}  Kb7 {[%clk 0:00:06]} 42. Qe7+ {[%clk 0:00:41]}  Ka6 {[%clk 0:00:06]} 43. Bd3+ {[%clk 0:00:40]}  Ka5 {[%clk 0:00:07]} 44. Qxa7+ {[%clk 0:00:36]}  Kb4 {[%clk 0:00:07]} 45. Qb6+ {[%clk 0:00:35]}  Kc3 {[%clk 0:00:07]} 46. Be4 {[%clk 0:00:33]}  Qxe5 {[%clk 0:00:05]} 47. Kg2 {[%clk 0:00:31]}  g4 {[%clk 0:00:04]} 48. Qb1 {[%clk 0:00:26]}  gxf3+ {[%clk 0:00:05]} 49. Kxf3 {[%clk 0:00:25]}  Qh5+ {[%clk 0:00:05]} 50. g4 {[%clk 0:00:20]}  Qh3+ {[%clk 0:00:00]} 51. Kf4 {[%clk 0:00:21]} 1-0


[Site "https://www.chess.com"]

[Event "Titled Tuesday Blitz May 23 Late 2023"]
[White "Gubajdullin, Alexei"]
[Black "Jaracz, Pawel"]
[WhiteFideId "4141202"]
[BlackFideId "1102222"]
[WhiteElo "2279"]
[BlackElo "2438"]
[Result "0-1"]
[Round "07"]
[TimeControl "180+2"]
[Date "2023.05.23"]
[WhiteClock "0:00:06"]
[BlackClock "0:00:32"]

1. d4 {[%clk 0:02:59]}  Nf6 {[%clk 0:02:59]} 2. Nf3 {[%clk 0:02:59]}  g6 {[%clk 0:02:58]} 3. Bf4 {[%clk 0:02:59]}  Bg7 {[%clk 0:02:57]} 4. e3 {[%clk 0:03:00]}  d6 {[%clk 0:02:57]} 5. Be2 {[%clk 0:03:00]}  O-O {[%clk 0:02:57]} 6. O-O {[%clk 0:03:01]}  c5 {[%clk 0:02:57]} 7. c3 {[%clk 0:03:00]}  cxd4 {[%clk 0:02:53]} 8. exd4 {[%clk 0:03:00]}  Be6 {[%clk 0:02:53]} 9. h3 {[%clk 0:02:59]}  Qb6 {[%clk 0:02:53]} 10. Qc2 {[%clk 0:02:53]}  Nc6 {[%clk 0:02:53]} 11. Nbd2 {[%clk 0:02:52]}  Rac8 {[%clk 0:02:53]} 12. Rfc1 {[%clk 0:02:02]}  Nd5 {[%clk 0:02:34]} 13. Nc4 {[%clk 0:01:59]}  Qd8 {[%clk 0:02:30]} 14. Bg5 {[%clk 0:01:56]}  b5 {[%clk 0:02:16]} 15. Ne3 {[%clk 0:01:50]}  h6 {[%clk 0:01:47]} 16. Nxd5 {[%clk 0:01:47]}  hxg5 {[%clk 0:01:47]} 17. Qe4 {[%clk 0:01:43]}  Bf5 {[%clk 0:01:35]} 18. Qe3 {[%clk 0:01:36]}  e6 {[%clk 0:01:36]} 19. Nb4 {[%clk 0:01:32]}  Nxb4 {[%clk 0:01:36]} 20. cxb4 {[%clk 0:01:32]}  Rxc1+ {[%clk 0:01:26]} 21. Rxc1 {[%clk 0:01:31]}  g4 {[%clk 0:01:26]} 22. hxg4 {[%clk 0:01:17]}  Bxg4 {[%clk 0:01:27]} 23. Rc6 {[%clk 0:00:58]}  Qd7 {[%clk 0:01:17]} 24. Bxb5 {[%clk 0:00:57]}  Qb7 {[%clk 0:01:17]} 25. a4 {[%clk 0:00:55]}  Bxf3 {[%clk 0:01:11]} 26. Qxf3 {[%clk 0:00:50]}  d5 {[%clk 0:01:10]} 27. Qf4 {[%clk 0:00:44]}  Qe7 {[%clk 0:01:08]} 28. Rc5 {[%clk 0:00:30]}  g5 {[%clk 0:01:00]} 29. Qd2 {[%clk 0:00:22]}  Bf6 {[%clk 0:00:59]} 30. Be2 {[%clk 0:00:13]}  Qd6 {[%clk 0:00:53]} 31. b5 {[%clk 0:00:12]}  Kg7 {[%clk 0:00:45]} 32. b4 {[%clk 0:00:11]}  Be7 {[%clk 0:00:41]} 33. a5 {[%clk 0:00:10]}  Rh8 {[%clk 0:00:41]} 34. g3 {[%clk 0:00:10]}  Qd8 {[%clk 0:00:40]} 35. Kg2 {[%clk 0:00:09]}  Bxc5 {[%clk 0:00:40]} 36. bxc5 {[%clk 0:00:09]}  Qf6 {[%clk 0:00:33]} 37. b6 {[%clk 0:00:09]}  Qh6 {[%clk 0:00:33]} 38. Bf3 {[%clk 0:00:06]}  Qh1# {[%clk 0:00:32]} 0-1


[Site "https://www.chess.com"]

[Event "Titled Tuesday Blitz May 23 Late 2023"]
[White "Filgueira, Hernan"]
[Black "Matinian, Nikita"]
[WhiteFideId "101770"]
[BlackFideId "24129100"]
[WhiteElo "2363"]
[BlackElo "2422"]
[Result "0-1"]
[Round "07"]
[TimeControl "180+2"]
[Date "2023.05.23"]
[WhiteClock "0:00:15"]
[BlackClock "0:01:01"]

1. c4 {[%clk 0:02:54]}  d6 {[%clk 0:03:00]} 2. g3 {[%clk 0:02:50]}  g6 {[%clk 0:03:01]} 3. Bg2 {[%clk 0:02:48]}  Bg7 {[%clk 0:03:02]} 4. Nc3 {[%clk 0:02:47]}  e5 {[%clk 0:03:00]} 5. d3 {[%clk 0:02:47]}  Nc6 {[%clk 0:03:00]} 6. e4 {[%clk 0:02:46]}  h5 {[%clk 0:02:59]} 7. h4 {[%clk 0:02:44]}  f5 {[%clk 0:02:53]} 8. Nge2 {[%clk 0:02:41]}  Nf6 {[%clk 0:02:53]} 9. Bg5 {[%clk 0:02:33]}  Be6 {[%clk 0:02:46]} 10. Nd5 {[%clk 0:02:29]}  O-O {[%clk 0:02:46]} 11. Qd2 {[%clk 0:02:28]}  Qd7 {[%clk 0:02:33]} 12. f3 {[%clk 0:02:26]}  Rae8 {[%clk 0:02:19]} 13. O-O {[%clk 0:02:24]}  Nh7 {[%clk 0:02:14]} 14. Bh6 {[%clk 0:02:21]}  Nd8 {[%clk 0:02:11]} 15. exf5 {[%clk 0:02:12]}  gxf5 {[%clk 0:02:10]} 16. Bxg7 {[%clk 0:01:49]}  Qxg7 {[%clk 0:02:11]} 17. Kh2 {[%clk 0:01:49]}  c6 {[%clk 0:02:11]} 18. Ndc3 {[%clk 0:01:48]}  Kh8 {[%clk 0:02:08]} 19. b3 {[%clk 0:01:43]}  Rg8 {[%clk 0:02:08]} 20. Bh3 {[%clk 0:01:36]}  f4 {[%clk 0:01:58]} 21. Rg1 {[%clk 0:01:32]}  Bxh3 {[%clk 0:01:56]} 22. Kxh3 {[%clk 0:01:31]}  Qd7+ {[%clk 0:01:23]} 23. Kh2 {[%clk 0:01:29]}  Qe7 {[%clk 0:01:23]} 24. Rh1 {[%clk 0:01:13]}  fxg3+ {[%clk 0:01:17]} 25. Kg2 {[%clk 0:01:13]}  Ne6 {[%clk 0:01:17]} 26. Rae1 {[%clk 0:01:09]}  Ref8 {[%clk 0:01:17]} 27. d4 {[%clk 0:01:05]}  Qf6 {[%clk 0:01:15]} 28. Rhf1 {[%clk 0:00:55]}  Qxh4 {[%clk 0:01:07]} 29. Rh1 {[%clk 0:00:55]}  Qf6 {[%clk 0:01:07]} 30. Ref1 {[%clk 0:00:53]}  exd4 {[%clk 0:01:05]} 31. Ne4 {[%clk 0:00:53]}  Qg6 {[%clk 0:01:04]} 32. Rh4 {[%clk 0:00:40]}  d5 {[%clk 0:01:04]} 33. cxd5 {[%clk 0:00:39]}  cxd5 {[%clk 0:01:05]} 34. N4xg3 {[%clk 0:00:34]}  d3 {[%clk 0:01:05]} 35. Qb2+ {[%clk 0:00:15]}  Rg7 {[%clk 0:01:01]} 0-1


[Site "https://www.chess.com"]